bitfinex/quotes_SOLUSD_20240726
["timestamp","ask_amount","ask_price","bid_price","bid_amount"]
[1721987315584,12.06,180.18,180.13,12.06]
[1721987315788,16.0606,180.19,180.08,1.10999499]
[1721987315789,12.06,180.16,180.08,1.10999499]
[1721987315985,16.0606,180.19,180.1,12.06]
[1721987316187,12.06,180.14,180.07,1.11020794]
[1721987316408,16.5861,180.13,180.09,12.06]
[1721987316587,16.5861,180.13,180.1,20.0]
[1721987317205,16.5861,180.13,180.1,32.06]
[1721987317692,16.5861,180.13,180.1,20.0]
[1721987318309,16.5861,180.13,180.09,20.0]
[1721987319512,16.5861,180.13,180.1,12.06]
[1721987319885,15.2876,180.2,180.12,12.06]
[1721987320086,12.06,180.18,180.12,12.06]
[1721987320300,12.06,180.16,180.11,12.06]
[1721987320610,12.06,180.16,180.1,12.06]
[1721987320818,12.06,180.15,180.11,20.0]
[1721987321699,12.06,180.15,180.1,12.06]
[1721987322094,12.06,180.15,180.06,1.11000707]
[1721987322292,12.06,180.15,180.1,12.06]
[1721987322491,12.06,180.16,180.1,12.06]
[1721987323406,12.06,180.15,180.1,12.06]
[1721987323586,5.55,180.18,180.1,12.06]
[1721987323787,12.06,180.15,180.1,12.06]
[1721987327719,15.2876,180.2,180.1,12.06]
[1721987327906,12.06,180.17,180.11,12.06]
[1721987328594,12.06,180.16,180.11,12.06]
[1721987328811,12.06,180.16,180.1,12.06]
[1721987331200,16.5699,180.14,180.09,12.06]
[1721987333193,16.5699,180.14,180.06,1.11021997]
[1721987333510,34.7608,180.14,180.06,20.0]
[1721987333725,34.7608,180.14,180.08,12.06]
[1721987334190,12.06,180.13,180.07,12.06]
[1721987334392,12.06,180.13,180.08,20.0]
[1721987334620,21.4653,180.19,180.12,12.06]
[1721987334793,12.06,180.18,180.13,32.06]
[1721987334993,33.5253,180.19,180.13,12.06]
[1721987335192,12.06,180.18,180.13,12.06]
[1721987335409,21.4653,180.19,180.1,1.11005049]
[1721987335610,12.06,180.17,180.12,12.06]
[1721987335817,12.06,180.18,180.12,12.06]
[1721987336118,12.06,180.17,180.12,12.06]
[1721987336697,12.06,180.15,180.09,1.11005822]
[1721987336897,12.06,180.15,180.1,12.06]
[1721987337097,12.06,180.14,180.11,1.11023744]
[1721987337314,12.06,180.14,180.1,21.11023744]
[1721987337625,12.06,180.14,180.1,20.0]
[1721987338615,12.06,180.14,180.06,1.11029543]
[1721987338816,12.06,180.13,180.08,12.06]
[1721987339047,12.06,180.13,180.09,1.11037053]
[1721987339216,12.06,180.14,180.09,1.11037053]
[1721987339420,12.06,180.14,180.08,12.06]
[1721987339421,16.0864,180.13,180.08,12.06]
[1721987339626,28.1464,180.13,180.08,12.06]
[1721987340035,12.06,180.12,180.05,6.63653407]
[1721987340245,12.06,180.12,180.07,12.06]
[1721987340537,28.1464,180.13,180.08,12.06]
[1721987340750,16.0864,180.13,180.09,1.11039171]
[1721987340926,16.0864,180.13,180.09,13.17039171]
[1721987341314,16.0864,180.13,180.08,12.06]
[1721987343018,16.0864,180.13,180.09,1.11041649]
[1721987344120,16.0864,180.13,180.09,12.06]
[1721987346326,16.0864,180.13,180.08,12.06]
[1721987346834,16.0864,180.13,180.04,1.11030789]
[1721987347048,16.0864,180.13,180.08,12.06]
[1721987349630,28.1464,180.13,180.07,12.06]
[1721987349829,16.0864,180.13,180.08,12.06]
[1721987352556,28.1464,180.13,180.08,12.06]
[1721987353554,16.0864,180.13,180.08,12.06]
[1721987356959,16.0864,180.13,180.09,12.06]
[1721987357265,16.0864,180.13,180.08,12.06]
[1721987359866,16.0864,180.13,180.04,1.11030789]
[1721987360065,16.0864,180.13,180.08,12.06]
[1721987361441,16.0864,180.13,180.1,12.06]
[1721987361757,16.0864,180.13,180.11,12.06]
[1721987362435,15.1083,180.18,180.12,13.17026306]
[1721987362662,15.1083,180.18,180.14,12.06]
[1721987364052,15.1083,180.18,180.15,1.11008992]
[1721987364571,15.1083,180.18,180.14,12.06]
[1721987364770,15.1083,180.18,180.13,12.06]
[1721987364947,15.1083,180.18,180.14,13.17008494]
[1721987365154,15.1083,180.18,180.14,12.06]
[1721987366054,15.1083,180.18,180.15,1.11006667]
[1721987366248,15.1083,180.18,180.14,12.06]
[1721987367371,27.1683,180.18,180.13,12.06]
[1721987367571,27.1683,180.18,180.04,45.0]
[1721987367572,12.06,180.17,180.07,1.11019462]
[1721987367757,12.06,180.17,180.11,12.06]
[1721987367955,12.06,180.17,180.12,20.0]
[1721987369468,12.06,180.16,180.11,12.06]
[1721987369861,12.06,180.16,180.1,12.06]
[1721987370767,12.06,180.16,180.11,20.0]
[1721987371170,12.06,180.16,180.11,32.06]
[1721987371654,12.06,180.16,180.11,12.06]
[1721987371858,15.1083,180.18,180.11,12.06]
[1721987372061,12.06,180.16,180.11,12.06]
[1721987372577,15.1083,180.18,180.11,12.06]
[1721987372785,12.06,180.16,180.11,12.06]
[1721987372951,12.06,180.16,180.1,12.06]
[1721987373152,12.06,180.16,180.11,20.0]
[1721987373380,12.06,180.13,180.05,2.25365279]
[1721987373552,16.4769,180.12,180.07,12.06]
[1721987374774,16.4769,180.12,180.08,20.0]
[1721987374968,16.4769,180.12,180.07,12.06]
[1721987375172,28.5369,180.12,180.08,20.0]
[1721987376572,16.4769,180.12,180.08,20.0]
[1721987377478,28.5369,180.12,180.08,20.0]
[1721987377975,16.4769,180.12,180.08,20.0]
[1721987378181,16.4769,180.12,180.07,12.06]
[1721987378671,16.4769,180.12,180.03,2.19978828]
[1721987378976,16.4769,180.12,180.07,12.06]
[1721987379658,28.5369,180.12,180.07,12.06]
[1721987380159,28.5369,180.12,180.04,12.06]
[1721987380160,12.06,180.09,180.04,12.06]
[1721987380380,12.06,180.09,180.03,12.06]
[1721987380761,12.06,180.09,180.04,12.06]
[1721987381467,12.06,180.09,180.05,20.0]
[1721987381873,12.06,180.1,180.05,20.0]
[1721987382076,12.06,180.1,180.05,32.06]
[1721987382386,12.06,180.11,180.05,32.06]
[1721987382869,12.06,180.11,180.05,12.06]
[1721987383185,16.4769,180.12,180.08,12.06]
[1721987383377,16.4769,180.12,180.09,12.06]
[1721987384102,16.4769,180.12,180.1,12.06]
[1721987384680,16.4769,180.12,180.11,12.06]
[1721987387604,16.4769,180.12,180.03,9.32558162]
[1721987387815,16.4769,180.12,180.1,12.06]
[1721987388107,16.4769,180.12,180.09,12.06]
[1721987388293,16.4769,180.12,180.1,20.0]
[1721987389104,16.4769,180.12,180.03,1.11037843]
[1721987389283,16.4769,180.12,180.09,12.06]
[1721987390190,16.4769,180.12,180.1,12.06]
[1721987390394,16.4769,180.12,180.11,12.06]
[1721987391011,16.4769,180.12,180.03,16.29565718]
[1721987391190,16.4769,180.12,180.09,12.06]
[1721987391510,16.4769,180.12,180.11,12.06]
[1721987392283,15.689,180.16,180.11,12.06]
[1721987393302,12.06,180.15,180.1,12.06]
[1721987393504,27.749,180.16,180.1,12.06]
[1721987393710,12.06,180.15,180.09,12.06]
[1721987394707,15.689,180.16,180.12,12.06]
[1721987394906,15.689,180.16,180.13,12.06]
[1721987395287,15.689,180.16,180.12,12.06]
[1721987395612,15.689,180.16,180.11,12.06]
[1721987396207,12.06,180.15,180.09,12.06]
[1721987396512,12.06,180.14,180.08,12.06]
[1721987396696,15.689,180.16,180.09,20.0]
[1721987396697,12.06,180.13,180.09,20.0]
[1721987397490,12.06,180.14,180.09,20.0]
[1721987400187,12.06,180.13,180.07,12.06]
[1721987400621,12.06,180.13,180.08,20.0]
[1721987400800,12.06,180.13,180.08,32.06]
[1721987402192,18.6451,180.12,180.08,20.0]
[1721987402396,28.5048,180.11,180.08,20.0]
[1721987402597,16.4448,180.11,180.07,12.06]
[1721987402793,16.4448,180.11,180.08,32.06]
[1721987403095,16.4448,180.11,180.08,20.0]
[1721987404511,16.4448,180.11,180.08,32.06]
[1721987406611,16.4448,180.11,180.08,20.0]
[1721987407203,16.4448,180.11,180.07,20.0]
[1721987409798,16.4448,180.11,180.07,32.06]
[1721987412318,16.4448,180.11,180.08,12.06]
[1721987415239,16.4448,180.11,180.09,12.06]
[1721987416933,12.06,180.17,180.1,12.06]
[1721987417237,12.06,180.18,180.12,12.06]
[1721987417432,22.7846,180.2,180.12,12.06]
[1721987417628,12.06,180.19,180.13,12.06]
[1721987417840,34.8446,180.2,180.14,12.06]
[1721987418435,12.06,180.19,180.14,12.06]
[1721987418824,12.06,180.19,180.09,12.06]
[1721987418825,12.06,180.19,180.13,12.06]
[1721987419244,12.06,180.18,180.13,12.06]
[1721987419833,22.7846,180.2,180.07,20.0]
[1721987419834,12.06,180.17,180.11,12.06]
[1721987420127,12.06,180.19,180.13,12.06]
[1721987422148,12.06,180.18,180.13,12.06]
[1721987422452,12.06,180.18,180.12,12.06]
[1721987423457,28.334,180.2,180.12,12.06]
[1721987423631,12.06,180.18,180.12,12.06]
[1721987424631,12.06,180.17,180.06,2.21536904]
[1721987424827,12.06,180.17,180.11,12.06]
[1721987425540,28.3342,180.2,180.11,12.06]
[1721987425854,12.06,180.17,180.11,12.06]
[1721987426548,12.06,180.17,180.1,12.06]
[1721987427642,12.06,180.14,180.05,2.26590722]
[1721987427944,12.06,180.13,180.07,12.06]
[1721987428148,12.06,180.13,180.08,20.0]
[1721987428350,12.06,180.14,180.08,32.06]
[1721987429748,12.06,180.13,180.08,20.0]
[1721987430072,18.2483,180.14,180.08,32.06]
[1721987430238,6.1883,180.14,180.09,12.06]
[1721987430438,15.0062,180.16,180.11,12.06]
[1721987431759,27.0662,180.16,180.05,1.11038224]
[1721987431938,27.0662,180.16,180.1,12.06]
[1721987432138,12.06,180.15,180.09,12.06]
[1721987432338,12.06,180.15,180.1,20.0]
[1721987433549,15.0062,180.16,180.1,20.0]
[1721987433758,27.0662,180.16,180.1,32.06]
[1721987433964,27.0662,180.16,180.1,12.06]
[1721987434649,15.0062,180.16,180.1,12.06]
[1721987434844,27.0662,180.16,180.1,12.06]
[1721987435846,12.06,180.15,180.09,12.06]
[1721987437967,12.06,180.14,180.05,7.62508717]
[1721987438170,12.06,180.14,180.08,12.06]
[1721987438376,12.06,180.14,180.09,20.0]
[1721987438682,12.06,180.15,180.09,32.06]
[1721987439278,12.06,180.15,180.09,12.06]
[1721987439459,27.0662,180.16,180.1,12.06]
[1721987439773,12.06,180.14,180.05,7.62508717]
[1721987440075,12.06,180.11,180.06,20.0]
[1721987440644,12.06,180.1,180.05,7.62508717]
[1721987440847,12.06,180.1,180.04,12.06]
[1721987441470,12.06,180.1,180.01,8.59099384]
[1721987441670,6.2822,180.13,180.02,7.62508717]
[1721987441671,12.06,180.11,180.02,7.62508717]
[1721987442279,12.06,180.11,180.03,20.0]
[1721987442581,12.06,180.11,180.03,27.62508717]
[1721987443370,12.06,180.08,180.03,7.62508717]
[1721987443787,12.06,180.08,179.97,16.90075279]
[1721987443788,12.06,180.06,179.97,8.19591188]
[1721987443958,12.06,180.07,180.01,12.06]
[1721987444565,12.06,180.06,180.0,12.06]
[1721987445400,18.6302,180.07,180.01,12.06]
[1721987445694,12.06,180.06,180.01,12.06]
[1721987445881,18.6302,180.07,180.02,12.06]
[1721987446083,18.6302,180.07,179.99,7.62508717]
[1721987446084,6.5702,180.07,180.03,12.06]
[1721987446595,6.5702,180.07,179.99,7.62508717]
[1721987446769,6.5702,180.07,180.03,12.06]
[1721987447174,6.5702,180.07,180.04,12.06]
[1721987447584,16.5505,180.1,180.06,12.06]
[1721987447800,16.5505,180.1,180.01,1.11081609]
[1721987447801,16.5505,180.1,180.08,12.06]
[1721987447984,16.5505,180.1,180.04,7.62508717]
[1721987448187,16.5505,180.1,180.07,12.06]
[1721987449281,27.4679,180.15,180.09,12.06]
[1721987450796,12.06,180.14,180.09,12.06]
[1721987450972,12.06,180.14,180.05,20.0]
[1721987451167,12.06,180.14,180.08,12.06]
[1721987451808,12.06,180.13,180.07,12.06]
[1721987453075,12.06,180.12,180.06,12.06]
[1721987454981,12.06,180.11,180.05,20.0]
[1721987455179,12.06,180.1,180.05,12.06]
[1721987455401,12.06,180.1,180.04,19.68508717]
[1721987455710,12.06,180.09,180.04,19.68508717]
[1721987457784,12.06,180.1,180.04,19.68508717]
[1721987458300,12.06,180.11,180.05,12.06]
[1721987460101,12.06,180.14,180.08,12.06]
[1721987461504,12.06,180.13,180.07,12.06]
[1721987461703,12.06,180.14,180.08,12.06]
[1721987462082,12.06,180.14,180.09,12.06]
[1721987462282,15.4079,180.15,180.09,12.06]
[1721987462283,27.4679,180.15,180.09,12.06]
[1721987462502,15.4079,180.15,180.1,12.06]
[1721987464787,27.4679,180.15,180.09,12.06]
[1721987466417,15.4079,180.15,180.11,12.06]
[1721987470416,15.4079,180.15,180.1,12.06]
[1721987471889,27.4679,180.15,180.1,12.06]
[1721987474806,27.4679,180.15,180.05,1.11040065]
[1721987475003,27.4679,180.15,180.09,12.06]
[1721987475197,27.4679,180.15,180.1,20.0]
[1721987475595,27.4679,180.15,180.1,32.06]
[1721987476336,15.4079,180.15,180.11,12.06]
[1721987477509,15.4079,180.15,180.12,12.06]
[1721987477724,12.06,180.19,180.13,12.06]
[1721987479523,12.06,180.19,180.14,12.06]
[1721987480525,12.06,180.19,180.13,12.06]
[1721987481905,12.06,180.17,180.1,20.0]
[1721987482106,22.3953,180.2,180.1,12.06]
[1721987482107,12.06,180.16,180.1,12.06]
[1721987482324,12.06,180.15,180.11,20.0]
[1721987482852,12.06,180.14,180.08,12.06]
[1721987483018,28.6204,180.13,180.08,12.06]
[1721987483205,28.6204,180.13,180.07,12.06]
[1721987483411,12.06,180.12,180.06,12.06]
[1721987483622,12.06,180.11,180.05,19.68508717]
[1721987483918,12.06,180.1,180.05,7.62508717]
[1721987484326,12.06,180.11,180.05,19.68508717]
[1721987485112,12.06,180.12,180.06,12.06]
[1721987485320,28.6204,180.13,180.07,12.06]
[1721987485741,12.06,180.12,180.06,12.06]
[1721987486118,28.6204,180.13,180.07,12.06]
[1721987487111,12.06,180.12,180.07,12.06]
[1721987487437,12.06,180.11,180.05,19.68508717]
[1721987487818,12.06,180.11,180.06,20.0]
[1721987488239,12.06,180.1,180.06,20.0]
[1721987488414,12.06,180.11,180.06,21.11062103]
[1721987488750,12.06,180.12,180.06,33.17062103]
[1721987489553,28.6204,180.13,180.07,12.06]
[1721987490962,16.5604,180.13,180.07,13.17052775]
[1721987491262,28.6204,180.13,180.07,13.17052775]
[1721987491755,28.6204,180.13,180.07,12.06]
[1721987492141,12.06,180.12,180.07,12.06]
[1721987494959,28.6204,180.13,180.07,12.06]
[1721987495562,28.6204,180.13,180.08,12.06]
[1721987495742,28.6204,180.13,180.07,12.06]
[1721987500070,16.5604,180.13,180.08,12.06]
[1721987500649,28.6204,180.13,180.07,12.06]
[1721987501762,28.6204,180.13,180.07,13.17056461]
[1721987501969,16.5604,180.13,180.08,12.06]
[1721987504051,16.5604,180.13,180.07,12.06]
[1721987504052,28.6204,180.13,180.07,12.06]
[1721987506782,16.5604,180.13,180.08,12.06]
[1721987506967,28.6204,180.13,180.07,12.06]
[1721987510384,16.5604,180.13,180.07,12.06]
[1721987510589,28.6204,180.13,180.07,12.06]
[1721987515794,16.5604,180.13,180.1,12.06]
[1721987517267,16.5604,180.13,180.06,20.0]
[1721987517467,16.5604,180.13,180.09,12.06]
[1721987520291,16.5604,180.13,180.08,12.06]
[1721987520985,16.5604,180.13,180.06,20.0]
[1721987521294,16.5604,180.13,180.08,12.06]
[1721987522190,28.6204,180.13,180.08,12.06]
[1721987523195,16.5604,180.13,180.08,12.06]
[1721987528298,16.5604,180.13,180.08,13.34]
[1721987534612,29.9004,180.13,180.06,13.34]
[1721987534911,13.34,180.12,180.07,20.0]
[1721987535106,29.9004,180.13,180.07,33.34]
[1721987535409,13.34,180.12,180.07,20.0]
[1721987537516,16.5604,180.13,180.08,13.34]
[1721987537687,16.5604,180.13,180.09,13.34]
[1721987538009,16.5604,180.13,180.11,13.34]
[1721987538212,16.5604,180.13,180.12,13.34]
[1721987539317,16.5604,180.13,180.11,13.34]
[1721987540011,16.5604,180.13,180.07,20.0]
[1721987540215,16.5604,180.13,180.11,13.34]
[1721987542203,16.3631,180.18,180.11,13.34]
[1721987542407,13.34,180.17,180.11,13.34]
[1721987545320,13.34,180.17,180.12,20.0]
[1721987545523,13.34,180.17,180.12,33.34]
[1721987546518,13.34,180.17,180.12,20.0]
[1721987546822,13.34,180.16,180.12,20.0]
[1721987547534,13.34,180.16,180.11,20.0]
[1721987548831,13.34,180.16,180.11,33.34]
[1721987550238,16.3631,180.18,180.13,13.34]
[1721987551935,29.7031,180.18,180.13,13.34]
[1721987553626,3.78054424,180.21,180.17,26.68]
[1721987553839,3.78054424,180.21,180.18,73.36]
[1721987554148,3.78054424,180.21,180.18,20.0]
[1721987554324,3.78054424,180.21,180.18,13.34]
[1721987555749,3.78054424,180.21,180.19,13.34]
[1721987557323,3.78054424,180.21,180.18,13.34]
[1721987559236,3.78054424,180.21,180.19,13.34]
[1721987559430,3.78054424,180.21,180.18,13.34]
[1721987560330,3.78054424,180.21,180.2,13.34]
[1721987561237,3.78054424,180.21,180.19,13.34]
[1721987561448,3.78054424,180.21,180.16,28.62529274]
[1721987561616,3.78054424,180.21,180.17,13.34]
[1721987561818,3.78054424,180.21,180.18,20.0]
[1721987562040,3.78054424,180.21,180.18,33.34]
[1721987562236,3.78054424,180.21,180.19,13.34]
[1721987562929,3.78054424,180.21,180.18,20.0]
[1721987563121,3.78054424,180.21,180.17,13.34]
[1721987563441,3.78054424,180.21,180.18,20.0]
[1721987563618,3.78054424,180.21,180.18,33.34]
[1721987566263,13.34,180.19,180.11,8.82409667]
[1721987566433,3.78054424,180.21,180.14,13.34]
[1721987566636,3.78054424,180.21,180.11,11.12277569]
[1721987566637,17.12054424,180.21,180.16,13.34]
[1721987566945,3.78054424,180.21,180.16,13.34]
[1721987567134,3.78054424,180.21,180.17,1.10991206]
[1721987567647,3.78054424,180.21,180.16,13.34]
[1721987567857,17.12054424,180.21,180.16,13.34]
[1721987568435,17.12054424,180.21,180.15,13.34]
[1721987568747,17.12054424,180.21,180.16,20.0]
[1721987568956,3.78054424,180.21,180.14,13.34]
[1721987569161,13.34,180.2,180.15,20.0]
[1721987571058,13.34,180.19,180.15,20.0]
[1721987571238,13.34,180.2,180.15,21.11005077]
[1721987572444,13.34,180.2,180.15,20.0]
[1721987572959,13.34,180.2,180.15,21.11005219]
[1721987573742,3.78054424,180.21,180.15,21.11005219]
[1721987573938,17.12054424,180.21,180.15,34.45005219]
[1721987574253,3.78054424,180.21,180.15,33.34]
[1721987574434,17.12054424,180.21,180.15,33.34]
[1721987575029,17.12054424,180.21,180.15,20.0]
[1721987575357,13.34,180.2,180.14,13.34]
[1721987575556,13.34,180.2,180.15,20.0]
[1721987576755,3.78054424,180.21,180.15,20.0]
[1721987577140,13.34,180.2,180.15,20.0]
[1721987577859,13.34,180.2,180.15,21.11000429]
[1721987578362,13.34,180.2,180.15,20.0]
[1721987579235,13.34,180.2,180.16,1.10998886]
[1721987579657,13.34,180.2,180.15,20.0]
[1721987580366,13.34,180.19,180.13,13.34]
[1721987580569,13.34,180.19,180.14,20.0]
[1721987580768,13.34,180.19,180.13,13.34]
[1721987580946,13.34,180.19,180.14,20.0]
[1721987581566,13.34,180.2,180.15,1.11005763]
[1721987581762,17.12054424,180.21,180.15,14.45005763]
[1721987582141,17.12054424,180.21,180.15,13.34]
[1721987582662,3.78054424,180.21,180.15,14.45005712]
[1721987582836,17.12054424,180.21,180.15,14.45005712]
[1721987583035,3.78054424,180.21,180.15,14.45005712]
[1721987583238,3.78054424,180.21,180.16,14.44993347]
[1721987583659,3.78054424,180.21,180.17,13.34]
[1721987585351,3.78054424,180.21,180.16,13.34]
[1721987586568,3.78054424,180.21,180.15,1.10998982]
[1721987586751,17.12054424,180.21,180.15,14.44998982]
[1721987586955,3.78054424,180.21,180.15,13.34]
[1721987587157,3.78054424,180.21,180.16,1.10998968]
[1721987587469,3.78054424,180.21,180.16,13.34]
[1721987587847,3.78054424,180.21,180.15,13.34]
[1721987588769,3.78054424,180.21,180.16,13.34]
[1721987588968,3.78054424,180.21,180.17,13.34]
[1721987590354,3.78054424,180.21,180.16,13.34]
[1721987592771,3.78054424,180.21,180.17,13.34]
[1721987593362,3.78054424,180.21,180.16,13.34]
[1721987596688,3.78054424,180.21,180.17,13.34]
[1721987597252,3.78054424,180.21,180.18,13.34]
[1721987597475,3.78054424,180.21,180.19,13.34]
[1721987598168,3.78054424,180.21,180.18,13.34]
[1721987598369,3.78054424,180.21,180.17,13.34]
[1721987598872,3.78054424,180.21,180.12,20.0]
[1721987599068,3.78054424,180.21,180.16,13.34]
[1721987599264,3.78054424,180.21,180.18,13.34]
[1721987599781,3.78054424,180.21,180.18,13.33]
[1721987600363,3.78054424,180.21,180.17,33.33]
[1721987600572,3.78054424,180.21,180.17,20.0]
[1721987601364,3.78054424,180.21,180.16,13.33]
[1721987601563,3.78054424,180.21,180.17,20.0]
[1721987602367,3.78054424,180.21,180.2,13.33]
[1721987602576,3.78054424,180.21,180.17,20.0]
[1721987602577,3.78054424,180.21,180.19,13.33]
[1721987602760,3.78054424,180.21,180.2,13.33]
[1721987602964,3.78054424,180.21,180.2,78.33]
[1721987603152,3.78054424,180.21,180.2,13.33]
[1721987603366,3.78054424,180.21,180.2,1.10957963]
[1721987603584,3.78054424,180.21,180.2,13.33]
[1721987603880,3.78054424,180.21,180.2,33.33]
[1721987604080,3.78054424,180.21,180.2,78.33]
[1721987604877,3.78054424,180.21,180.2,79.43954204]
[1721987605180,3.78054424,180.21,180.2,87.15384578]
[1721987605370,3.78054424,180.21,180.2,101.90373852]
[1721987605567,3.78054424,180.21,180.2,87.46419648]
[1721987605881,3.78054424,180.21,180.2,81.33959648]
[1721987606075,3.78054424,180.21,180.2,94.66959648]
[1721987606875,3.78054424,180.21,180.2,20.0]
[1721987607081,3.78054424,180.21,180.16,13.33]
[1721987607381,17.11054424,180.21,180.16,13.33]
[1721987608059,3.78054424,180.21,180.17,13.33]
[1721987608857,3.78054424,180.21,180.18,13.33]
[1721987609062,3.78054424,180.21,180.14,8.62529274]
[1721987609064,3.78054424,180.21,180.2,13.33]
[1721987609356,3.78054424,180.21,180.18,13.33]
[1721987609759,3.78054424,180.21,180.14,8.62529274]
[1721987609972,3.78054424,180.21,180.16,13.33]
[1721987610274,17.11054424,180.21,180.15,13.33]
[1721987610482,17.11054424,180.21,180.13,7.71430374]
[1721987610483,3.78054424,180.21,180.16,13.33]
[1721987612159,3.78054424,180.21,180.13,8.82422386]
[1721987612356,3.78054424,180.21,180.18,13.33]
[1721987612587,3.78054424,180.21,180.14,73.09879274]
[1721987612588,17.11054424,180.21,180.14,28.09879274]
[1721987612774,17.11054424,180.21,180.15,13.33]
[1721987613372,28.331,180.2,180.14,41.42879274]
[1721987613570,19.7262,180.19,180.14,20.0]
[1721987614592,19.7262,180.19,180.13,13.33]
[1721987614886,6.3962,180.19,180.15,13.33]
[1721987615073,6.3962,180.19,180.14,13.33]
[1721987615271,19.7262,180.19,180.09,8.09879274]
[1721987615496,13.33,180.18,180.13,13.33]
[1721987615782,6.3962,180.19,180.13,13.33]
[1721987615966,6.3962,180.19,180.14,13.33]
[1721987616167,6.3962,180.19,180.15,13.33]
[1721987617577,6.3962,180.19,180.16,13.33]
[1721987617775,6.3962,180.19,180.17,13.33]
[1721987618281,15.001,180.2,180.18,13.32]
[1721987619187,15.001,180.2,180.17,13.32]
[1721987619381,15.001,180.2,180.18,13.32]
[1721987620702,15.001,180.2,180.19,13.32]
[1721987620882,3.78054424,180.21,180.19,13.32]
[1721987621082,3.78054424,180.21,180.19,8.7340484]
[1721987621387,3.78054424,180.21,180.2,13.32]
[1721987622488,3.78054424,180.21,180.19,13.32]
[1721987623072,3.78054424,180.21,180.12,1.10979311]
[1721987623276,3.78054424,180.21,180.17,13.32]
[1721987623504,3.78054424,180.21,180.18,33.32]
[1721987623671,3.78054424,180.21,180.18,13.32]
[1721987624683,3.78054424,180.21,180.19,13.32]
[1721987624883,3.78054424,180.21,180.14,26.2696]
[1721987625086,3.78054424,180.21,180.2,13.32]
[1721987625288,3.78054424,180.21,180.2,33.32]
[1721987625688,3.78054424,180.21,180.2,20.0]
[1721987625985,3.78054424,180.21,180.2,33.32]
[1721987626292,3.78054424,180.21,180.2,78.32]
[1721987626983,3.78054424,180.21,180.2,79.42944602]
[1721987628402,3.78054424,180.21,180.2,78.32]
[1721987629715,3.78054424,180.21,180.2,20.0]
[1721987629882,3.78054424,180.21,180.2,29.1437936]
[1721987630698,3.78054424,180.21,180.2,30.25335226]
[1721987631208,3.78054424,180.21,180.2,75.25335226]
[1721987632288,3.78054424,180.21,180.2,73.9227216]
[1721987634512,3.78054424,180.21,180.2,79.4720216]
[1721987634700,3.78054424,180.21,180.2,34.4720216]
[1721987635601,3.78054424,180.21,180.2,79.4720216]
[1721987637792,0.75444424,180.21,180.2,79.4720216]
[1721987638315,0.75444424,180.21,180.2,80.58151723]
[1721987638910,4.424e-05,180.21,180.2,80.58151723]
[1721987639122,4.424e-05,180.21,180.2,79.4720216]
[1721987639309,1.03e-05,180.25,180.24,32.7384]